bitfinex/quotes_SOLUSD_20260309
["timestamp","ask_amount","ask_price","bid_price","bid_amount"]
[1773071199154,4.24871109,85.05,85.015,41.16920543]
[1773071199618,11.75792778,85.049,85.015,29.40657531]
[1773071201719,4.24871109,85.04,85.01,11.76332196]
[1773071203022,41.15274723,85.049,85.011,0.52474399]
[1773071203829,41.15274723,85.049,85.012,11.76304521]
[1773071204130,4.24871109,85.04,85.012,11.76304521]
[1773071205238,11.75792778,85.049,85.013,0.52474399]
[1773071205524,3.69383402,85.072,85.013,0.52474399]
[1773071205525,41.13146791,85.093,85.014,0.52474399]
[1773071206034,11.75378177,85.079,85.016,0.52474399]
[1773071206526,41.13823621,85.079,85.016,0.52474399]
[1773071206725,11.75378177,85.079,85.016,0.52474399]
[1773071206921,11.75267667,85.087,85.021,0.52474399]
[1773071207125,11.75267667,85.087,85.026,0.52474399]
[1773071207428,11.75143367,85.096,85.032,4.82477569]
[1773071207633,7.27151468,85.097,85.041,0.52474399]
[1773071207834,7.27151468,85.097,85.043,0.66690556]
[1773071208019,11.75143367,85.096,85.044,0.52474399]
[1773071209648,4.24871109,85.09,85.044,0.52474399]
[1773071209808,4.24871109,85.08,85.045,0.52474399]
[1773071210330,4.24871109,85.09,85.045,0.52474399]
[1773071210831,11.75170987,85.094,85.045,0.52474399]
[1773071212018,4.24871109,85.09,85.047,0.52474399]
[1773071212730,41.13098455,85.094,85.047,0.52474399]
[1773071212912,11.75170987,85.094,85.047,0.52474399]
[1773071213628,4.24871109,85.09,85.047,0.52474399]
[1773071214020,11.75240042,85.089,85.049,0.52474399]
[1773071214225,4.24871109,85.08,85.048,11.75806603]
[1773071214412,4.24871109,85.07,85.037,11.75953593]
[1773071214729,4.24871109,85.07,85.038,0.52474399]
[1773071215109,4.24871109,85.06,84.998,0.52474399]
[1773071215328,4.24871109,85.05,84.999,0.52474399]
[1773071215627,4.24871109,85.05,85.002,0.52474399]
[1773071215831,0.28432314,85.079,85.002,0.52474399]
[1773071216021,4.24871109,85.06,85.003,0.52474399]
[1773071216221,4.24871109,85.06,85.001,3.69383402]
[1773071216222,11.75654545,85.059,85.006,0.52474399]
[1773071216826,4.24871109,85.05,85.006,0.52474399]
[1773071217531,41.14790909,85.059,85.006,0.52474399]
[1773071217718,11.38425545,85.05,85.006,0.52474399]
[1773071218117,11.75792778,85.049,85.007,11.7637371]
[1773071218313,11.75792778,85.049,85.008,0.52474399]
[1773071218514,41.15274723,85.049,85.008,0.52474399]
[1773071219719,11.75792778,85.049,85.008,0.52474399]
[1773071219918,11.75654545,85.059,85.008,0.52474399]
[1773071220237,11.38425545,85.05,85.01,0.52474399]
[1773071220628,11.38425545,85.04,85.01,0.52474399]
[1773071221540,11.38425545,85.05,85.01,0.52474399]
[1773071221739,11.75654545,85.059,85.01,0.52474399]
[1773071222839,11.75654545,85.059,85.012,0.52474399]
[1773071223428,11.38278406,85.05,85.011,41.17114255]
[1773071223632,11.38278406,85.04,85.011,11.76318358]
[1773071223832,11.38278406,85.05,85.011,11.76318358]
[1773071224148,11.38278406,85.04,85.011,11.76318358]
[1773071224440,11.38278406,85.03,84.994,0.52474399]
[1773071224740,41.14790909,85.059,84.979,11.76761317]
[1773071224741,11.38278406,85.01,84.979,11.76761317]
[1773071224942,11.38278406,85.0,84.979,11.76761317]
[1773071225322,11.38278406,85.0,84.977,22.48579356]
[1773071225518,11.38278406,84.99,84.977,22.48579356]
[1773071225742,11.38278406,85.0,84.978,0.52474399]
[1773071225938,11.76346033,85.009,84.978,0.52474399]
[1773071226928,11.76346033,85.009,84.98,0.52474399]
[1773071227941,11.76346033,85.009,84.977,22.48579356]
[1773071227942,11.38278406,85.0,84.977,22.48579356]
[1773071228842,0.28432314,85.015,84.977,22.48579356]
[1773071229039,11.38278406,85.01,84.979,0.52474399]
[1773071229444,41.16484757,85.024,84.979,0.52474399]
[1773071229648,11.38278406,85.01,84.979,0.52474399]
[1773071231046,11.38278406,85.01,84.98,12.29221868]
[1773071231349,11.38278406,85.01,84.981,0.52474399]
[1773071232265,11.76346033,85.009,84.981,0.52474399]
[1773071232764,11.38278406,85.0,84.977,22.48579356]
[1773071232930,11.76622857,84.989,84.977,22.48579356]
[1773071236237,11.38278406,84.99,84.977,34.25361443]
[1773071236435,4.82477569,85.067,84.978,0.52474399]
[1773071236635,11.38278406,85.01,84.978,0.52474399]
[1773071238835,11.38278406,85.02,84.98,0.52474399]
[1773071241360,11.38278406,85.03,84.983,0.52474399]
[1773071242634,41.15661856,85.041,84.983,0.52474399]
[1773071242834,11.38278406,85.0,84.977,22.48579356]
[1773071243453,11.76484429,84.999,84.977,22.48579356]
[1773071243947,11.76484429,84.999,84.977,34.25364267]
[1773071244554,11.76484429,84.999,84.977,22.48579356]
[1773071245076,11.76484429,84.999,84.957,29.42646722]
[1773071245077,4.25477417,84.99,84.962,0.52474399]
[1773071245247,29.40894309,85.009,84.964,0.52474399]
[1773071245551,11.76484429,84.999,84.966,0.52474399]
[1773071245956,11.39596529,84.99,84.96,11.77012618]
[1773071246137,11.39596529,84.99,84.961,0.52474399]
[1773071247459,11.39596529,84.98,84.947,0.52474399]
[1773071247656,11.39596529,84.97,84.947,0.52474399]
[1773071247843,11.39596529,84.96,84.939,0.52474399]
[1773071248043,11.39596529,84.97,84.939,0.52474399]
[1773071250054,47.03096137,85.051,84.941,0.52474399]
[1773071250263,11.39596529,85.0,84.942,0.52474399]
[1773071250758,11.39596529,84.99,84.942,0.52474399]
[1773071250959,41.16968969,85.014,84.942,0.52474399]
[1773071250960,11.39596529,84.98,84.942,0.52474399]
[1773071251344,11.39596529,84.99,84.942,0.52474399]
[1773071251546,11.39596529,84.98,84.942,0.52474399]
[1773071251746,11.39596529,84.97,84.942,0.52474399]
[1773071252148,11.7689981,84.969,84.942,0.52474399]
[1773071252349,11.7689981,84.969,84.943,11.77260044]
[1773071253352,11.7689981,84.969,84.943,0.52474399]
[1773071254671,11.7689981,84.969,84.925,0.52474399]
[1773071254966,11.39596529,84.95,84.925,0.52474399]
[1773071255847,11.39596529,84.96,84.925,0.52474399]
[1773071256162,11.7689981,84.969,84.925,0.52474399]
[1773071257853,11.7689981,84.969,84.927,0.52474399]
[1773071258766,11.7689981,84.969,84.928,11.77467972]
[1773071258965,11.7689981,84.969,84.929,0.52474399]
[1773071259189,11.39596529,84.97,84.929,0.52474399]
[1773071260459,11.76876149,84.971,84.929,0.52474399]
[1773071260848,11.76690524,84.985,84.932,0.52474399]
[1773071261462,11.76609442,84.99,84.932,0.52474399]
[1773071261682,29.39793038,85.04,84.935,0.52474399]
[1773071261970,0.28432314,85.029,84.95,0.52474399]
[1773071262149,11.39596529,85.02,84.95,0.52474399]
[1773071262848,11.39596529,85.01,84.955,0.52474399]
[1773071263065,11.39596529,85.01,84.956,0.52474399]
[1773071264057,41.16726849,85.019,84.956,0.52474399]
[1773071264950,41.16726849,85.019,84.959,0.52474399]
[1773071265750,11.39596529,85.01,84.959,0.52474399]
[1773071266695,11.39596529,85.0,84.959,0.52474399]
[1773071267052,41.17695502,84.999,84.96,11.77024482]
[1773071267249,29.4090187,85.008,84.961,0.52474399]
[1773071267455,11.7637371,85.007,84.961,0.52474399]
[1773071267969,11.39596529,85.0,84.961,0.52474399]
[1773071269379,11.76484429,84.999,84.963,0.52474399]
[1773071270872,11.76484429,84.999,84.965,0.52474399]
[1773071273665,29.40934276,85.007,84.967,0.52474399]
[1773071274959,4.25421249,84.99,84.939,0.52474399]
[1773071275164,4.25421249,85.0,84.94,0.52474399]
[1773071276487,7.29554985,85.02,84.946,0.52474399]
[1773071276488,4.25421249,85.01,84.946,0.52474399]
[1773071277191,11.76346033,85.009,84.946,0.52474399]
[1773071279371,4.25421249,85.01,84.949,0.52474399]
[1773071280382,4.25421249,84.98,84.949,0.52474399]
[1773071281076,4.25421249,84.99,84.949,0.52474399]
[1773071281590,4.25421249,84.99,84.947,41.20216133]
[1773071281591,4.25632462,84.99,84.95,11.77163037]
[1773071281774,4.25632462,84.99,84.95,12.29637436]
[1773071281969,4.25632462,84.99,84.951,0.52474399]
[1773071282691,4.25632462,85.0,84.951,0.52474399]
[1773071282986,11.76415227,85.004,84.952,0.52474399]
[1773071283763,4.25632462,85.0,84.955,0.52474399]
[1773071284181,11.76290684,85.013,84.958,0.52474399]
[1773071284383,4.25632462,85.0,84.958,0.52474399]
[1773071284572,41.17017396,85.013,84.958,0.52474399]
[1773071284573,4.25632462,84.99,84.958,0.52474399]
[1773071285170,4.25632462,84.99,84.953,11.77121467]
[1773071285585,4.25632462,84.99,84.953,12.29595866]
[1773071285765,11.76622857,84.989,84.953,12.29595866]
[1773071285964,11.76622857,84.989,84.954,0.52474399]
[1773071286688,0.28432314,84.988,84.944,0.52474399]
[1773071286880,4.25632462,84.97,84.923,0.52474399]
[1773071287088,4.25632462,84.95,84.92,0.2]
[1773071287273,4.25632462,84.95,84.922,0.52474399]
[1773071287790,11.77176894,84.949,84.923,11.77537298]
[1773071287994,11.40968746,84.94,84.92,0.2]
[1773071288176,11.77176894,84.949,84.921,0.52474399]
[1773071289284,11.77038336,84.959,84.921,0.52474399]
[1773071289798,11.77038336,84.959,84.92,41.41512904]
[1773071289799,11.77038336,84.959,84.923,0.52474399]
[1773071290092,11.76980983,84.964,84.923,0.52474399]
[1773071290291,11.40968746,84.96,84.923,0.52474399]
[1773071290883,11.76980983,84.964,84.923,0.52474399]
[1773071291080,3.69383402,84.986,84.923,0.52474399]
[1773071291081,11.40968746,84.99,84.924,0.52474399]
[1773071291584,11.40968746,84.98,84.924,0.52474399]
[1773071291891,11.40968746,84.98,84.926,0.52474399]
[1773071294284,11.76761317,84.979,84.928,0.52474399]
[1773071295089,11.76636701,84.988,84.929,0.52474399]
[1773071296286,11.40968746,84.98,84.932,0.52474399]
[1773071298399,0.28432314,85.005,84.935,0.52474399]
[1773071298400,11.76737615,84.981,84.935,0.52474399]
[1773071298598,9.95639578,85.0,84.937,0.52474399]
[1773071298792,47.02652729,85.059,84.937,0.52474399]
[1773071298793,11.40968746,85.02,84.947,0.52474399]
[1773071298976,18.08187892,85.014,84.951,0.52474399]
[1773071299301,11.40968746,85.01,84.951,0.52474399]
[1773071299594,18.08187892,85.014,84.951,0.52474399]
[1773071300594,11.76207671,85.019,84.954,0.52474399]
[1773071300977,11.40968746,85.01,84.954,0.52474399]
[1773071301388,11.40968746,85.0,84.954,0.52474399]
[1773071302590,3.69383402,84.996,84.947,0.52474399]
[1773071302889,11.40968746,84.98,84.938,0.52474399]
[1773071303078,11.40968746,84.99,84.938,0.52474399]
[1773071305676,11.76622857,84.989,84.94,0.52474399]
[1773071305891,11.40968746,84.98,84.94,0.52474399]
[1773071307971,11.40968746,84.98,84.939,41.20604198]
[1773071307972,41.1866461,84.979,84.942,0.52474399]
[1773071308177,11.40968746,84.97,84.941,11.77287764]
[1773071309278,41.1866461,84.979,84.941,11.77287764]
[1773071309776,5.55999994,85.0,84.942,0.52474399]
[1773071309973,58.14627035,85.0,84.945,0.52474399]
[1773071310178,28.73450565,85.0,84.945,0.52474399]
[1773071310393,16.9696874,85.0,84.945,0.80906713]
[1773071310584,5.55999994,85.0,84.949,0.52474399]
[1773071311080,11.76484429,84.999,84.949,0.52474399]
[1773071312192,11.76484429,84.999,84.952,0.52474399]
[1773071313702,11.76484429,84.999,84.955,0.52474399]
[1773071315592,11.76484429,84.999,84.957,0.52474399]
[1773071316180,5.55999994,85.0,84.957,0.52474399]
[1773071317806,17.32475076,85.0,84.959,0.52474399]
[1773071318802,5.55999994,85.0,84.959,0.52474399]
[1773071319009,5.55999994,85.0,84.96,0.52474399]
[1773071319306,103.2,85.041,84.959,0.28432314]
[1773071319307,11.76124669,85.025,84.961,0.52474399]
[1773071319990,11.76069341,85.029,84.964,0.52474399]
[1773071320890,11.40968746,85.02,84.964,0.52474399]
[1773071321086,0.28432314,85.028,84.964,0.52474399]
[1773071321087,11.40968746,85.0,84.964,0.52474399]
[1773071321283,0.28432314,85.028,84.964,0.52474399]
[1773071321593,11.40968746,85.01,84.964,0.52474399]
[1773071322186,11.76346033,85.009,84.966,0.52474399]
[1773071323387,11.40968746,85.01,84.967,41.19246295]
[1773071323589,11.40968746,85.01,84.968,0.52474399]
[1773071325083,0.28432314,85.015,84.967,11.76927513]
[1773071325418,11.40968746,84.99,84.967,11.76927513]
[1773071325601,11.40968746,84.99,84.956,29.95147068]
[1773071325602,11.76622857,84.989,84.957,11.77066045]
[1773071326500,11.76484429,84.999,84.958,0.52474399]
[1773071327693,0.28432314,85.007,84.96,0.52474399]
[1773071328408,11.40968746,85.0,84.96,0.52474399]
[1773071328604,11.40968746,84.99,84.96,0.52474399]
[1773071329114,11.40968746,85.0,84.961,11.77010628]
[1773071330296,11.76484429,84.999,84.961,0.52474399]
[1773071331218,11.40968746,84.98,84.938,0.52474399]
[1773071331713,11.40968746,84.96,84.922,0.52474399]
[1773071331918,11.40968746,84.95,84.923,0.52474399]
[1773071332094,11.40968746,84.96,84.923,0.52474399]
[1773071332298,11.40968746,84.95,84.924,11.77523432]
[1773071332711,41.19634176,84.959,84.925,0.52474399]
[1773071332992,11.40968746,84.95,84.925,0.52474399]
[1773071333212,11.40968746,84.95,84.924,11.77523432]
[1773071334014,11.40968746,84.96,84.925,0.52474399]
[1773071334610,11.40968746,84.97,84.927,0.52474399]
[1773071335598,11.40968746,84.96,84.927,0.52474399]
[1773071335810,11.40968746,84.95,84.926,11.77495702]
[1773071336608,23.18137809,84.95,84.922,0.52474399]
[1773071337207,23.18137809,84.95,84.92,0.2]
[1773071337208,11.40968746,84.94,84.92,0.2]
[1773071337804,11.40968746,84.94,84.921,11.77565031]
[1773071338618,11.40968746,84.95,84.921,11.77565031]
[1773071339522,11.40968746,84.95,84.922,0.52474399]
[1773071339823,11.40968746,84.94,84.92,0.2]
[1773071341528,11.40968746,84.95,84.921,12.3003943]
[1773071341736,11.40968746,84.95,84.922,0.52474399]
[1773071342727,2.47215037,100.73,84.922,0.52474399]
[1773071342728,11.40968746,84.96,84.922,0.52474399]
[1773071343028,11.40968746,84.95,84.922,0.52474399]
[1773071343610,11.77176894,84.949,84.924,0.52474399]
[1773071345028,11.77176894,84.949,84.923,11.77537298]
[1773071347033,11.77176894,84.949,84.924,0.52474399]
[1773071347426,11.7705219,84.958,84.924,0.52474399]
[1773071347731,11.76660236,84.987,84.925,0.52474399]
[1773071347930,11.76695534,84.984,84.925,0.52474399]
[1773071348429,11.76629629,84.989,84.925,0.52474399]
[1773071348932,23.17491627,85.0,84.934,0.52474399]
[1773071349635,29.40970019,85.006,84.939,0.52474399]
[1773071349636,11.7639957,85.006,84.939,0.52474399]
[1773071349815,11.7639957,85.006,84.94,0.52474399]
[1773071350234,11.41008504,85.0,84.94,0.52474399]
[1773071350815,11.76484429,84.999,84.943,0.52474399]
[1773071352038,41.17695502,84.999,84.945,0.52474399]
[1773071354138,11.41008504,84.99,84.947,0.52474399]
[1773071355119,11.76622857,84.989,84.949,0.52474399]
[1773071356440,11.41008504,84.98,84.948,11.77190751]
[1773071357035,11.41008504,84.98,84.944,0.52474399]
[1773071357231,11.76761317,84.979,84.945,11.77232326]
[1773071357538,11.76761317,84.979,84.946,0.52474399]
[1773071357740,0.28432314,84.999,84.946,0.52474399]
[1773071358141,0.14216157,84.999,84.946,0.52474399]
[1773071358335,11.41008504,85.0,84.946,0.52474399]
[1773071358537,0.14216157,85.009,84.946,0.52474399]
[1773071358737,0.28432314,85.009,84.946,0.52474399]
[1773071358934,0.14216157,85.009,84.946,0.52474399]
[1773071359125,0.28432314,85.007,84.948,0.52474399]
[1773071360036,11.41008504,85.0,84.948,0.52474399]
[1773071361727,11.76484429,84.999,84.951,0.52474399]
[1773071361922,11.7637371,85.007,84.951,0.52474399]
[1773071362426,11.41008504,85.0,84.951,0.52474399]
[1773071363238,41.17307986,85.007,84.951,0.52474399]
[1773071364127,41.17307986,85.007,84.953,0.28432314]
[1773071364327,41.17307986,85.007,84.954,0.52474399]
[1773071364532,11.41008504,85.01,84.954,0.52474399]
[1773071364735,11.76317222,85.012,84.954,0.52474399]
[1773071365647,11.76317222,85.012,84.956,0.52474399]
[1773071366341,11.41008504,85.01,84.956,0.52474399]
[1773071366548,11.41008504,85.0,84.956,0.52474399]
[1773071366724,11.41008504,85.01,84.956,0.52474399]
[1773071366921,11.76317222,85.012,84.956,0.52474399]
[1773071367645,11.76317222,85.012,84.959,0.52474399]
[1773071367840,3.95000004,85.015,84.959,0.52474399]
[1773071368226,11.76276848,85.014,84.959,0.52474399]
[1773071368427,4.25328753,85.01,84.959,0.52474399]
[1773071369033,4.25328753,85.0,84.959,0.52474399]
[1773071369728,41.17695502,84.999,84.961,0.52474399]
[1773071369927,11.76484429,84.999,84.961,0.52474399]
[1773071371841,11.76484429,84.999,84.963,0.52474399]
[1773071372144,4.25328753,84.99,84.962,11.76996775]
[1773071372351,4.25328753,84.99,84.951,0.52474399]
[1773071373744,4.25328753,84.99,84.954,0.52474399]
[1773071373946,11.76622857,84.989,84.956,0.52474399]
[1773071374147,2.77999997,85.014,84.956,0.52474399]
[1773071374148,29.40884241,85.009,84.956,0.52474399]
[1773071375446,11.76359872,85.008,84.958,0.52474399]
[1773071377535,4.25328753,85.0,84.96,0.52474399]
[1773071379145,11.76484429,84.999,84.962,0.52474399]
[1773071379449,41.17695502,84.999,84.962,0.52474399]
[1773071379634,41.17695502,84.999,84.961,11.77010628]
[1773071379635,4.25328753,84.99,84.961,11.77010628]
[1773071379835,4.25328753,84.99,84.957,11.77055851]
[1773071380552,4.25328753,84.98,84.957,11.77055851]
[1773071380949,11.76622857,84.989,84.957,11.77055851]
[1773071381336,41.18179999,84.989,84.957,11.77055851]
[1773071381957,41.18179999,84.989,84.958,0.52474399]
[1773071383556,4.25328753,84.98,84.941,0.52474399]
[1773071385956,4.25328753,84.99,84.943,0.52474399]
[1773071386859,4.25328753,84.98,84.943,0.52474399]
[1773071387857,4.25328753,84.97,84.943,0.52474399]
[1773071388561,0.28432314,84.995,84.945,0.52474399]
[1773071388562,11.7689981,84.969,84.945,0.52474399]
[1773071390657,41.18665025,84.979,84.946,12.29692867]
[1773071391168,41.18665025,84.979,84.92,0.2]
[1773071391169,4.25328753,84.96,84.924,0.52474399]
[1773071391952,0.28432314,84.978,84.924,0.52474399]
[1773071392168,4.25328753,84.96,84.924,0.52474399]
[1773071392554,11.76761317,84.979,84.925,0.52474399]
[1773071392866,11.76622857,84.989,84.928,0.52474399]
[1773071393577,4.25328753,84.98,84.928,0.52474399]
[1773071393750,4.25328753,84.97,84.928,0.52474399]
[1773071394295,4.25328753,84.98,84.928,0.52474399]
[1773071395449,4.25328753,84.98,84.92,0.2]
[1773071395450,11.76761317,84.979,84.93,0.52474399]
[1773071397673,11.76761317,84.979,84.932,0.52474399]
[1773071398756,41.1866461,84.979,84.932,0.52474399]
[1773071399669,4.25328753,84.97,84.934,0.52474399]
[1773071400265,47.04468251,85.026,84.934,0.52474399]
[1773071400469,4.25328753,85.0,84.935,0.52474399]
[1773071401168,4.25328753,84.99,84.935,0.52474399]
[1773071402473,4.25328753,84.98,84.937,0.52474399]
[1773071402670,4.25328753,84.99,84.937,0.52474399]
[1773071403262,4.25328753,84.98,84.937,0.52474399]
[1773071403464,4.25328753,85.0,84.937,0.52474399]
[1773071403465,4.25328753,84.97,84.937,0.52474399]
[1773071404072,4.25328753,84.96,84.93,0.52474399]
[1773071404275,4.25328753,84.96,84.922,0.52474399]
[1773071404578,11.77038336,84.959,84.924,0.52474399]
[1773071407170,4.25927937,84.95,84.925,12.29983966]
[1773071407375,41.19634176,84.959,84.926,0.52474399]
[1773071408472,11.77038336,84.959,84.926,0.52474399]
[1773071409261,29.42300665,84.968,84.928,0.52474399]
[1773071409460,4.25927937,84.96,84.928,0.52474399]
[1773071412878,11.77024296,84.961,84.93,0.52474399]
[1773071414568,0.28432314,84.985,84.93,0.52474399]
[1773071414569,4.25927937,84.99,84.93,0.52474399]
[1773071414881,4.25927937,85.0,84.931,0.52474399]
[1773071415083,4.25927937,85.01,84.936,0.52474399]
[1773071415386,4.25927937,84.99,84.936,0.52474399]
[1773071415680,11.7649827,84.998,84.936,0.52474399]
[1773071416871,41.17743946,84.998,84.936,0.52474399]
[1773071417282,4.25927937,84.99,84.939,0.52474399]
[1773071419478,41.17743946,84.998,84.942,0.52474399]
[1773071419759,4.25927937,84.99,84.942,0.52474399]
[1773071420367,4.25927937,84.98,84.942,0.52474399]
[1773071420683,4.25927937,84.96,84.936,11.77348979]
[1773071420895,4.25927937,84.96,84.92,0.2]
[1773071421065,4.25927937,84.93,84.892,0.52474399]
[1773071421268,0.14216157,84.955,84.892,0.52474399]
[1773071421269,4.25927937,84.92,84.892,0.52474399]
[1773071421873,11.77592764,84.919,84.894,0.52474399]
[1773071423101,11.77592764,84.919,84.895,11.77925672]
[1773071423598,11.77592764,84.919,84.895,12.30400071]
[1773071424971,11.77454108,84.929,84.896,0.52474399]
[1773071425578,4.25927937,84.92,84.891,11.77981175]
[1773071425988,4.25927937,84.92,84.892,0.52474399]
[1773071426469,4.25927937,84.9,84.868,11.78288247]
[1773071426672,4.25927937,84.89,84.865,0.52474399]
[1773071426872,11.78008929,84.889,84.864,11.78351693]
[1773071427304,11.77950765,84.894,84.871,0.52474399]
[1773071427472,11.77950765,84.894,84.864,0.52474399]
[1773071427678,11.77950765,84.894,84.867,11.78313265]
[1773071427990,4.25927937,84.89,84.867,11.78313265]
[1773071428380,4.25927937,84.89,84.871,11.78258769]
[1773071428587,12.06025078,84.919,84.872,0.52474399]
[1773071428788,4.25927937,84.91,84.872,0.52474399]
[1773071429407,4.25927937,84.91,84.874,0.52474399]
[1773071429706,11.77624159,84.917,84.874,0.52474399]
[1773071429905,4.25927937,84.91,84.874,0.52474399]
[1773071430104,4.25927937,84.91,84.875,0.52474399]
[1773071431308,11.77566825,84.921,84.875,0.52474399]
[1773071432217,0.28432314,84.945,84.86,0.2]
[1773071432218,29.43290012,84.939,84.878,0.52474399]
[1773071432386,4.25927937,84.93,84.878,0.52474399]
[1773071432586,11.77329346,84.938,84.878,0.52474399]
[1773071432986,4.25927937,84.93,84.878,0.52474399]
[1773071436107,11.77454108,84.929,84.881,0.52474399]
[1773071436300,41.20148837,84.949,84.881,0.52474399]
[1773071436608,11.77176894,84.949,84.889,0.52474399]
[1773071436790,11.77038336,84.959,84.89,0.52474399]
[1773071437508,4.25927937,84.95,84.89,0.52474399]
[1773071438011,41.19634176,84.959,84.89,0.52474399]
[1773071438309,41.19634176,84.959,84.896,0.52474399]
[1773071439389,11.76979993,84.964,84.896,0.52474399]
[1773071439992,4.25927937,84.96,84.896,0.52474399]
[1773071440418,11.77038336,84.959,84.902,0.52474399]
[1773071441096,4.25927937,84.94,84.902,0.52474399]
[1773071442007,4.25927937,84.93,84.902,0.52474399]
[1773071442409,11.77454108,84.929,84.903,11.77814682]
[1773071442810,4.25927937,84.94,84.904,0.52474399]
[1773071443016,11.77315485,84.939,84.904,0.52474399]
[1773071444716,11.77315485,84.939,84.905,11.77786938]
[1773071444915,11.77315485,84.939,84.905,12.30261337]
[1773071445316,11.77315485,84.939,84.906,0.52474399]
[1773071447814,11.77315485,84.939,84.908,0.52474399]
[1773071451903,4.25927937,84.95,84.91,0.52474399]
[1773071452121,11.77176894,84.949,84.91,0.52474399]
[1773071452428,11.77038336,84.959,84.91,0.52474399]
[1773071452903,11.77038336,84.959,84.912,0.52474399]
[1773071452904,4.25927937,84.95,84.912,0.52474399]
[1773071459823,11.77176894,84.949,84.914,0.52474399]
[1773071460818,11.77071605,84.957,84.914,0.52474399]
[1773071461867,4.25927937,84.96,84.916,0.52474399]
[1773071462120,11.77016543,84.961,84.916,0.52474399]
[1773071465136,4.25927937,84.96,84.918,0.52474399]
[1773071465703,4.25829203,84.96,84.918,0.52474399]
[1773071466328,11.7689981,84.969,84.918,0.52474399]
[1773071466828,16.02576672,84.98,84.919,0.52474399]
[1773071467012,16.02576672,84.98,84.922,0.52474399]
[1773071467215,11.76747469,84.98,84.922,0.52474399]
[1773071467626,11.76622857,84.989,84.925,0.52474399]
[1773071467814,41.18179999,84.989,84.925,0.52474399]
[1773071469030,4.50919412,85.005,84.928,3.69383402]
[1773071469215,11.76415227,85.004,84.934,9.0433537]
[1773071469417,4.25829203,85.0,84.935,0.52474399]
[1773071469625,4.25829203,84.97,84.935,0.52474399]
[1773071469924,4.25829203,84.96,84.935,0.52474399]
[1773071470921,7.95212605,85.0,84.935,0.52474399]
[1773071471120,11.7689981,84.969,84.937,0.52474399]
[1773071474342,4.25829203,84.97,84.939,0.52474399]
[1773071475520,11.7689981,84.969,84.939,0.52474399]
[1773071475843,4.25829203,84.97,84.939,0.52474399]
[1773071476850,11.7689981,84.969,84.941,0.52474399]
[1773071477342,41.17695502,84.999,84.941,0.52474399]
[1773071477537,4.25829203,84.99,84.942,0.52474399]
[1773071478143,4.25829203,84.97,84.941,0.52474399]
[1773071478835,11.7689981,84.969,84.942,11.77273904]
[1773071479019,11.7689981,84.969,84.943,0.52474399]
[1773071480939,4.25829203,84.97,84.944,11.77246185]
[1773071481236,4.25829203,84.97,84.944,12.29720584]
[1773071481734,4.25829203,84.98,84.945,0.52474399]
[1773071483724,11.76761317,84.979,84.947,0.52474399]
[1773071484938,11.76761317,84.979,84.949,0.52474399]
[1773071485940,11.76622857,84.989,84.949,0.52474399]
[1773071486738,3.60735612,84.994,84.949,0.52474399]
[1773071487036,3.60735612,84.994,84.953,0.52474399]
[1773071488033,11.76340243,85.01,84.954,0.52474399]
[1773071488425,11.76207671,85.019,84.956,0.52474399]
[1773071489044,11.76207671,85.019,84.959,0.52474399]
[1773071491333,11.76207671,85.019,84.962,0.52474399]
[1773071493351,11.76207671,85.019,84.965,0.52474399]
[1773071494654,4.25829203,85.01,84.965,0.52474399]
[1773071495267,41.16726849,85.019,84.965,0.52474399]
[1773071495268,4.25829203,85.0,84.965,0.52474399]
[1773071495571,4.25829203,84.99,84.966,11.76941364]
[1773071495860,41.17695502,84.999,84.967,0.52474399]
[1773071496160,7.65804003,85.024,84.967,0.52474399]
[1773071496351,11.76152335,85.023,84.968,0.52474399]
[1773071496537,4.25829203,85.01,84.968,0.52474399]
[1773071496744,4.25829203,85.02,84.968,0.52474399]
[1773071497364,4.25829203,84.99,84.95,12.29623725]
[1773071497566,4.25829203,84.98,84.92,0.52474399]
[1773071497743,4.25829203,84.98,84.922,3.69383402]
[1773071498054,4.25829203,84.98,84.924,0.52474399]
[1773071499551,11.76761317,84.979,84.926,0.52474399]
[1773071499866,11.76761317,84.979,84.927,0.52474399]
[1773071500076,41.1866461,84.979,84.927,0.52474399]
[1773071500244,4.25829203,84.97,84.927,0.52474399]
[1773071501864,11.76841978,84.974,84.929,0.52474399]
[1773071502269,4.25829203,84.99,84.93,0.52474399]
[1773071504847,4.25829203,84.98,84.933,0.52474399]
[1773071505452,41.18179999,84.989,84.933,0.52474399]
[1773071505647,4.25829203,84.98,84.933,0.52474399]
[1773071506243,4.25829203,84.98,84.887,47.12131096]
[1773071506244,4.25829203,84.96,84.927,11.77475143]
[1773071506565,4.25829203,84.94,84.902,0.52474399]
[1773071506762,16.03139463,84.94,84.904,0.52474399]
[1773071508766,16.03139463,84.94,84.906,0.52474399]
[1773071509748,3.93663584,84.969,84.906,0.52474399]
[1773071509952,4.25829203,84.96,84.907,0.52474399]
[1773071511073,4.25829203,84.95,84.91,0.52474399]
[1773071511474,4.25829203,84.96,84.91,0.52474399]
[1773071512458,3.93663584,84.969,84.913,0.52474399]
[1773071513273,3.93663584,84.969,84.916,0.52474399]
[1773071513457,3.93663584,84.969,84.919,0.52474399]
[1773071513658,0.28432314,85.005,84.917,3.69383402]
[1773071513659,11.76484429,84.999,84.925,0.52474399]